bitfinex-derivatives/quotes_SOLF0:USTF0_20250106
["timestamp","ask_amount","ask_price","bid_price","bid_amount"]
[1736123989525,2.76,212.86,212.76,11.67445407]
[1736123989927,2.76,212.86,212.77,1.3965]
[1736123990528,14.43445407,212.86,212.77,1.3965]
[1736123990725,11.67445407,212.83,212.71,2.7844]
[1736123992023,2.3498,212.82,212.75,2.3505]
[1736123992225,2.76,212.81,212.75,2.3505]
[1736123993229,14.43445407,212.83,212.75,2.3505]
[1736123993529,16.78405407,212.83,212.75,2.3505]
[1736123996429,16.78405407,212.83,212.71,2.7844]
[1736123996430,2.3499,212.81,212.73,2.3507]
[1736123996931,2.3499,212.81,212.74,2.3506]
[1736123999634,2.3499,212.81,212.71,2.7844]
[1736123999830,2.3499,212.81,212.75,2.3505]
[1736124000231,14.43445407,212.83,212.71,2.7844]
[1736124000425,14.43445407,212.83,212.73,11.67445407]
[1736124000426,5.1097,212.83,212.73,11.67445407]
[1736124000929,5.1097,212.83,212.74,1.5385]
[1736124001434,5.1097,212.83,212.77,2.3503]
[1736124001632,5.1097,212.83,212.74,1.5385]
[1736124002136,5.1097,212.83,212.76,2.3504]
[1736124003137,5.1097,212.83,212.77,2.3503]
[1736124003337,2.3498,212.82,212.74,1.5385]
[1736124003928,2.3499,212.81,212.74,1.5385]
[1736124004233,14.43445407,212.83,212.74,1.5385]
[1736124005034,11.67445407,212.8,212.71,1.3931]
[1736124005435,2.3505,212.75,212.64,14.53595407]
[1736124005732,2.76,212.74,212.64,14.53595407]
[1736124006134,2.76,212.74,212.69,2.3512]
[1736124007634,2.76,212.74,212.65,1.5122]
[1736124007635,5.1107,212.74,212.67,2.3513]
[1736124007834,2.76,212.74,212.67,2.3513]
[1736124009133,11.67445407,212.71,212.58,11.67445407]
[1736124009640,11.67445407,212.71,212.55,4.4169]
[1736124009641,2.3515,212.66,212.6,2.3521]
[1736124009838,5.1115,212.66,212.55,16.09135407]
[1736124010638,2.76,212.66,212.55,16.09135407]
[1736124010836,2.76,212.66,212.58,2.3524]
[1736124011042,2.76,212.66,212.55,16.09135407]
[1736124012444,2.76,212.66,212.6,2.3521]
[1736124015549,2.76,212.66,212.62,2.3519]
[1736124015739,2.74,212.68,212.58,11.67445407]
[1736124015945,2.74,212.68,212.61,11.67445407]
[1736124016646,2.74,212.68,212.63,2.3518]
[1736124017142,2.3513,212.69,212.61,2.3521]
[1736124017348,2.74,212.78,212.67,11.67445407]
[1736124017647,11.67445407,212.81,212.67,11.67445407]
[1736124017648,2.74,212.77,212.67,11.67445407]
[1736124017849,2.74,212.77,212.68,1.3956]
[1736124019550,2.74,212.77,212.71,2.351]
[1736124020548,2.74,212.77,212.68,1.3956]
[1736124020749,2.74,212.77,212.72,2.3508]
[1736124021348,5.0903,212.77,212.72,2.3508]
[1736124021848,2.74,212.77,212.68,1.3956]
[1736124022051,2.74,212.77,212.69,2.3512]
[1736124022052,2.3506,212.75,212.69,2.3512]
[1736124022446,5.0904,212.77,212.71,2.3509]
[1736124022647,5.0904,212.77,212.68,1.3956]
[1736124023253,5.0904,212.77,212.72,2.3508]
[1736124023446,5.0904,212.77,212.68,1.3956]
[1736124023447,2.74,212.77,212.68,1.3956]
[1736124023653,8.10517379,212.89,212.7,11.67445407]
[1736124023654,11.67445407,212.84,212.7,11.67445407]
[1736124023952,11.67445407,212.84,212.69,1.4396]
[1736124023953,2.74,212.83,212.73,11.67445407]
[1736124024552,8.10517379,212.89,212.76,11.67445407]
[1736124024744,10.84517379,212.89,212.76,11.67445407]
[1736124024948,8.10517379,212.89,212.76,11.67445407]
[1736124025552,10.84517379,212.89,212.76,11.67445407]
[1736124025742,10.84517379,212.89,212.82,2.3496]
[1736124025948,10.84517379,212.89,212.76,11.67445407]
[1736124026348,2.74,212.88,212.78,2.3501]
[1736124026955,2.3493,212.86,212.79,2.35]
[1736124027550,2.3494,212.85,212.79,2.35]
[1736124028054,2.3493,212.86,212.8,2.35]
[1736124029956,14.41445407,212.88,212.73,11.67445407]
[1736124030255,11.67445407,212.85,212.73,14.41445407]
[1736124030453,11.67445407,212.82,212.71,1.3874]
[1736124030655,5.0899,212.81,212.75,2.3505]
[1736124031657,5.0899,212.81,212.71,1.3874]
[1736124031860,2.3502,212.79,212.71,1.3874]
[1736124033253,2.74,212.81,212.73,2.3507]
[1736124033254,5.09,212.81,212.73,2.3507]
[1736124033649,2.74,212.81,212.73,2.3507]
[1736124034453,2.35,212.8,212.73,2.3507]
[1736124035252,2.35,212.8,212.71,1.3874]
[1736124035457,2.35,212.8,212.74,2.3506]
[1736124038664,2.74,212.81,212.71,1.3874]
[1736124038859,2.74,212.81,212.72,2.3508]
[1736124039265,2.3502,212.78,212.72,2.3508]
[1736124040567,2.74,212.81,212.71,1.3874]
[1736124040568,2.3506,212.75,212.71,1.3874]
[1736124040864,2.74,212.75,212.62,2.74]
[1736124041455,2.74,212.75,212.61,11.67445407]
[1736124041661,11.67445407,212.73,212.61,11.67445407]
[1736124041860,11.67445407,212.73,212.62,1.4646]
[1736124042570,2.3511,212.71,212.62,1.4646]
[1736124043463,2.3511,212.71,212.65,2.3516]
[1736124047968,11.67445407,212.76,212.64,11.67445407]
[1736124048168,2.76,212.75,212.65,1.5414]
[1736124048363,2.76,212.75,212.65,2.9797]
[1736124048569,2.3507,212.74,212.68,2.3513]
[1736124048765,2.76,212.75,212.65,2.9797]
[1736124049771,2.3509,212.72,212.66,2.3514]
[1736124050370,11.67445407,212.73,212.65,1.5414]
[1736124050564,11.67445407,212.7,212.65,1.5414]
[1736124050760,2.76,212.69,212.62,1.4646]
[1736124050969,5.1113,212.69,212.62,1.4646]
[1736124052472,5.1113,212.69,212.64,2.3517]
[1736124052770,2.3513,212.68,212.62,1.4646]
[1736124053473,2.3513,212.68,212.62,3.8166]
[1736124054874,2.76,212.69,212.62,1.4646]
[1736124055074,2.76,212.7,212.62,1.4646]
[1736124055272,127.13813459,212.84,212.63,11.67445407]
[1736124055484,37.08332609,214.24,212.66,11.67445407]
[1736124055485,2.3504,212.77,212.66,11.67445407]
[1736124055686,2.76,212.77,212.67,1.5126]
[1736124056175,2.3505,212.75,212.69,2.3512]
[1736124056375,14.43445407,212.77,212.67,1.5126]
[1736124056766,11.67445407,212.77,212.67,1.5126]
[1736124056978,2.76,212.76,212.67,1.5126]
[1736124057278,2.3508,212.73,212.68,2.3513]
[1736124057680,2.76,212.76,212.67,1.5126]
[1736124057880,2.351,212.71,212.67,1.5126]
[1736124059076,2.3509,212.73,212.67,3.864]
[1736124059278,2.76,212.76,212.67,1.5126]
[1736124059479,2.76,212.76,212.7,2.351]
[1736124059687,2.3505,212.75,212.7,2.351]
[1736124060891,2.3507,212.74,212.7,2.351]
[1736124061888,2.76,212.76,212.67,1.5126]
[1736124062083,2.76,212.75,212.71,2.3509]
[1736124063693,5.1106,212.75,212.71,2.3509]
[1736124064087,5.1106,212.75,212.67,1.5126]
[1736124064290,5.1106,212.75,212.7,2.3511]
[1736124066494,2.3506,212.74,212.69,2.3512]
[1736124067293,2.3506,212.74,212.67,1.5126]
[1736124068397,2.3506,212.74,212.69,2.3512]
[1736124069198,2.76,212.75,212.67,1.5126]
[1736124069796,2.351,212.71,212.67,1.5126]
[1736124070691,2.76,212.75,212.67,1.5126]
[1736124070692,2.3509,212.72,212.67,1.5126]
[1736124071001,11.67445407,212.74,212.67,1.5126]
[1736124071800,2.351,212.72,212.67,1.5126]
[1736124073200,2.351,212.72,212.67,3.864]
[1736124075410,11.67445407,212.74,212.62,1.4646]
[1736124075599,11.67445407,212.71,212.62,1.4646]
[1736124075803,2.78,212.7,212.62,1.4646]
[1736124076001,5.1312,212.7,212.62,1.4646]
[1736124076201,2.78,212.7,212.62,1.4646]
[1736124076803,5.1311,212.7,212.65,2.3516]
[1736124077007,12.606143,212.7,212.65,2.3516]
[1736124080617,7.475043,212.68,212.65,2.3516]
[1736124081012,9.826343,212.68,212.63,2.3518]
[1736124082906,127.13813459,212.8,212.67,7.475043]
[1736124083109,7.475043,212.78,212.71,7.475043]
[1736124083411,2.78,212.77,212.72,2.3509]
[1736124084614,2.3502,212.78,212.72,2.3509]
[1736124084615,5.1302,212.78,212.72,2.3509]
[1736124085005,2.78,212.78,212.72,2.3509]
[1736124085205,2.3503,212.77,212.72,2.3509]
[1736124085406,2.3503,212.77,212.71,2.351]
[1736124091022,11.66996337,212.82,212.71,11.66996337]
[1736124091216,2.78,212.81,212.72,2.9861]
[1736124091416,2.78,212.82,212.72,2.9861]
[1736124092219,2.78,212.82,212.75,2.3505]
[1736124093419,2.35,212.8,212.75,2.3505]
[1736124094117,2.3501,212.79,212.73,2.3506]
[1736124094322,11.66996337,212.79,212.72,1.475]
[1736124095221,2.3504,212.76,212.72,1.475]
[1736124099626,2.78,212.77,212.69,1.4677]
[1736124099825,2.3507,212.74,212.69,3.8188]
[1736124101925,2.3509,212.72,212.67,2.3514]
[1736124102230,2.78,212.72,212.66,1.4251]
[1736124102925,11.66996337,212.76,212.66,1.4251]
[1736124102926,2.78,212.76,212.66,13.09506337]
[1736124103123,2.78,212.76,212.71,2.3509]
[1736124105027,5.1305,212.76,212.66,15.87506337]
[1736124106230,5.1305,212.76,212.69,2.3512]
[1736124107034,5.1305,212.76,212.66,15.87506337]
[1736124107035,7.47172579,212.75,212.7,2.3511]
[1736124107229,7.47172579,212.75,212.67,7.47172579]
[1736124108532,2.3508,212.73,212.68,2.3512]
[1736124111027,2.3507,212.74,212.68,2.3512]
[1736124114432,7.47172579,212.73,212.68,2.3512]
[1736124116439,9.82252579,212.73,212.68,2.3512]
[1736124119144,127.13813459,212.84,212.7,7.47172579]
[1736124119444,7.47172579,212.78,212.72,7.47172579]
[1736124120138,10.21172579,212.79,212.74,2.3506]
[1736124120335,2.74,212.81,212.76,7.47172579]
[1736124120535,2.74,212.82,212.76,7.47172579]
[1736124120843,2.74,212.82,212.69,2.74]
[1736124120844,10.21172579,212.82,212.69,2.74]
[1736124121032,10.21172579,212.82,212.75,7.47172579]
[1736124121435,2.3499,212.81,212.76,2.3504]
[1736124121636,2.3499,212.81,212.75,7.47172579]
[1736124122238,10.21172579,212.82,212.75,7.47172579]
[1736124122445,9.82172579,212.8,212.74,2.3505]
[1736124123537,7.47172579,212.8,212.75,2.3505]
[1736124123741,9.82192579,212.78,212.71,7.47172579]
[1736124123943,53.78,212.86,212.71,7.47172579]
[1736124124143,7.47172579,212.79,212.74,2.3506]
[1736124124446,10.21172579,212.79,212.74,2.3506]
[1736124124644,2.74,212.79,212.77,2.3503]
[1736124125743,2.74,212.79,212.78,2.3502]
[1736124127848,2.3496,212.84,212.75,7.47172579]
[1736124127849,10.21172579,212.83,212.75,7.47172579]
[1736124128045,10.21172579,212.83,212.79,2.35]
[1736124128352,53.78,212.86,212.79,7.47172579]
[1736124128353,2.74,212.86,212.79,7.47172579]
[1736124128649,2.74,212.86,212.83,2.3496]
[1736124130856,7.47172579,212.87,212.85,2.3494]
[1736124131049,2.74,212.87,212.85,2.3494]
[1736124132451,7.47172579,212.89,212.86,2.3492]
[1736124132648,10.21172579,212.89,212.86,2.3492]
[1736124133550,12.56052579,212.91,212.86,2.3492]
[1736124133951,10.21172579,212.91,212.83,7.47172579]
[1736124134149,7.47172579,212.89,212.83,7.47172579]
[1736124134350,7.47172579,212.89,212.79,2.74]
[1736124134549,7.47172579,212.87,212.79,10.21172579]
[1736124135552,9.82092579,212.87,212.82,2.3498]
[1736124135950,9.82092579,212.87,212.79,10.21172579]
[1736124136353,7.47172579,212.85,212.75,4.4228]
[1736124136554,7.47172579,212.85,212.78,7.47172579]
[1736124136754,2.72,212.86,212.78,7.47172579]
[1736124137149,10.19172579,212.86,212.78,7.47172579]
[1736124137548,10.19172579,212.86,212.8,2.35]
[1736124138555,2.72,212.86,212.8,9.82172579]
[1736124138756,2.72,212.86,212.82,7.47172579]
[1736124139262,2.72,212.86,212.81,2.3498]
[1736124139555,2.72,212.86,212.78,7.47172579]
[1736124139556,7.47172579,212.85,212.78,7.47172579]
[1736124139854,7.47172579,212.83,212.76,7.47172579]
[1736124140056,7.47172579,212.83,212.78,2.3502]
[1736124141353,2.72,212.86,212.78,7.47172579]
[1736124141554,7.47172579,212.85,212.78,7.47172579]
[1736124141755,2.72,212.86,212.8,7.47172579]
[1736124142257,7.47172579,212.85,212.78,7.47172579]
[1736124142859,9.82112579,212.85,212.8,2.35]
[1736124143158,7.47172579,212.83,212.76,7.47172579]
[1736124143362,2.35,212.8,212.75,4.4228]
[1736124143857,7.47172579,212.81,212.75,4.4228]
[1736124144452,7.47172579,212.77,212.65,53.78]
[1736124144650,7.47172579,212.77,212.7,7.47172579]
[1736124144850,2.3505,212.76,212.71,2.3509]
[1736124145362,7.47172579,212.75,212.71,2.3509]
[1736124145865,5.0705,212.76,212.71,2.3509]
[1736124146064,12.54222579,212.76,212.71,2.3509]
[1736124147057,10.19172579,212.76,212.72,2.3509]
[1736124147257,2.72,212.76,212.72,2.3509]
[1736124148558,2.72,212.76,212.72,7.47172579]
[1736124148756,2.72,212.79,212.74,2.3506]
[1736124149761,5.0701,212.79,212.74,2.3506]
[1736124150960,7.47172579,212.78,212.72,7.47172579]
[1736124151162,2.3503,212.77,212.72,2.3508]
[1736124152663,7.47172579,212.76,212.66,4.3466]
[1736124152962,2.72,212.79,212.67,7.47172579]
[1736124153165,7.47172579,212.74,212.67,7.47172579]
[1736124153371,10.19172579,212.74,212.67,7.47172579]
[1736124153662,2.3508,212.73,212.68,2.3513]
[1736124153962,2.351,212.71,212.66,4.3466]
[1736124154870,7.47172579,212.7,212.64,7.47172579]
[1736124155168,2.72,212.69,212.62,7.47172579]
[1736124155362,127.13813459,212.85,212.66,7.47172579]
[1736124155569,7.47172579,212.74,212.68,7.47172579]
[1736124155870,10.19172579,212.74,212.68,7.47172579]
[1736124156269,10.19172579,212.74,212.68,9.82292579]
[1736124156468,10.19172579,212.74,212.68,7.47172579]
[1736124156668,7.47172579,212.72,212.66,7.47172579]
[1736124156871,7.47172579,212.72,212.6,2.72]
[1736124157066,2.3509,212.72,212.66,2.3514]
[1736124157267,2.72,212.74,212.62,11.67759744]
[1736124157965,2.3509,212.73,212.62,11.67759744]
[1736124158369,2.72,212.74,212.62,11.67759744]
[1736124158573,2.72,212.74,212.64,2.3517]
[1736124158775,2.72,212.74,212.59,16.07639744]
[1736124160171,2.72,212.74,212.62,11.67759744]
[1736124160480,2.351,212.71,212.65,2.3516]
[1736124161577,2.351,212.71,212.62,11.67759744]
[1736124162474,2.351,212.71,212.65,2.3516]
[1736124162971,5.0707,212.74,212.68,2.3513]
[1736124163174,5.0707,212.74,212.65,11.67759744]
[1736124164069,2.72,212.73,212.65,11.67759744]
[1736124164673,2.72,212.74,212.65,11.67759744]
[1736124165768,5.0707,212.74,212.65,11.67759744]
[1736124165972,2.72,212.74,212.65,11.67759744]
[1736124167072,5.0706,212.74,212.65,11.67759744]
[1736124167274,2.72,212.74,212.65,11.67759744]
[1736124167580,2.72,212.74,212.63,2.72]
[1736124168478,2.351,212.71,212.66,2.3515]
[1736124168673,2.72,212.74,212.66,2.3515]
[1736124169472,2.3509,212.72,212.67,2.3514]
[1736124170880,2.3508,212.73,212.67,2.3514]
[1736124172281,2.3508,212.73,212.68,2.3513]
[1736124173672,58.4787,212.86,212.65,11.67759744]
[1736124173673,2.72,212.76,212.65,11.67759744]
[1736124173876,2.72,212.76,212.66,1.4392]
[1736124174377,2.72,212.76,212.67,2.936]
[1736124175381,5.0704,212.76,212.67,2.936]
[1736124176281,5.0704,212.76,212.7,2.351]
[1736124176983,12.54107064,212.76,212.7,2.351]
[1736124177177,2.72,212.75,212.7,2.351]
[1736124177981,2.72,212.75,212.69,7.47067064]
[1736124178280,2.72,212.75,212.71,2.3509]
[1736124180683,9.82107064,212.76,212.71,2.3509]
[1736124180879,2.72,212.75,212.71,2.3509]
[1736124181685,53.78,212.86,212.73,2.3507]
[1736124181878,7.47067064,212.78,212.73,2.3507]
[1736124182078,2.72,212.77,212.73,2.3507]
[1736124184178,2.72,212.77,212.74,2.3506]
[1736124185581,2.72,212.77,212.7,7.47067064]
[1736124186486,2.72,212.77,212.74,2.3506]
[1736124188480,7.47067064,212.76,212.74,2.3506]
[1736124189089,7.47067064,212.76,212.71,2.3509]
[1736124189289,7.47067064,212.74,212.71,2.3509]
[1736124192294,7.47067064,212.74,212.67,10.40667064]
[1736124192295,10.19067064,212.77,212.73,2.3507]
[1736124198483,214.88116832,212.88,212.71,7.47067064]
[1736124198689,9.82057064,212.82,212.77,2.3503]
[1736124198992,2.68,212.81,212.77,2.3503]
[1736124201089,9.82057064,212.82,212.76,7.47067064]
[1736124201294,2.68,212.81,212.78,2.3502]
[1736124202993,2.68,212.81,212.77,2.3503]
[1736124203190,9.82057064,212.82,212.77,2.3503]
[1736124203397,2.68,212.81,212.77,2.3503]
[1736124204495,5.0299,212.81,212.77,2.3503]
[1736124207599,7.47067064,212.78,212.75,2.3505]
[1736124207800,7.47067064,212.78,212.67,5.616]
[1736124208099,7.47067064,212.76,212.68,7.47067064]
[1736124208298,7.47067064,212.74,212.68,7.47067064]
[1736124208494,7.47067064,212.74,212.7,2.351]
[1736124209591,7.47067064,212.74,212.67,2.936]
[1736124209791,7.47067064,212.72,212.67,5.2874]
[1736124210495,7.47067064,212.7,212.67,2.936]
[1736124211098,7.47067064,212.7,212.63,9.82237064]
[1736124211898,7.47067064,212.7,212.63,7.47067064]
[1736124212198,7.47067064,212.7,212.64,2.3517]
[1736124213903,7.47067064,212.7,212.63,7.47067064]
[1736124214105,7.47067064,212.7,212.65,2.3516]
[1736124214404,7.47067064,212.7,212.65,9.82227064]
[1736124215304,9.82177064,212.7,212.65,9.82227064]
[1736124216703,2.68,212.71,212.65,9.82217064]
[1736124216903,10.15067064,212.71,212.65,7.47067064]
[1736124217815,10.15067064,212.71,212.67,2.3514]
[1736124218002,2.68,212.71,212.67,7.47067064]
[1736124219000,2.3505,212.76,212.7,2.3511]
[1736124219201,127.13813459,212.85,212.71,7.47067064]
[1736124219202,2.68,212.75,212.71,7.47067064]
[1736124219405,2.68,212.8,212.73,7.47067064]
[1736124219606,127.13813459,212.85,212.64,2.68]
[1736124219607,2.68,212.81,212.76,7.47067064]
[1736124220204,2.68,212.81,212.76,9.82107064]
[1736124220597,2.68,212.81,212.76,7.47067064]
[1736124220801,5.0299,212.81,212.76,7.47067064]
[1736124221505,2.68,212.8,212.77,2.3503]
[1736124222700,2.3498,212.82,212.78,7.47067064]
[1736124222904,7.47067064,212.85,212.78,7.47067064]
[1736124223206,5.0295,212.84,212.78,7.47067064]
[1736124224511,5.0295,212.84,212.8,2.35]
[1736124225802,7.47067064,212.85,212.8,2.35]
[1736124226007,2.68,212.86,212.82,2.3498]
[1736124226405,87.74303373,212.88,212.82,9.82047064]
[1736124226707,2.68,212.87,212.82,9.82047064]
[1736124231015,10.15067064,212.87,212.82,2.3498]
[1736124231817,7.47067064,212.87,212.82,2.3498]
[1736124232215,2.68,212.91,212.84,7.47067064]
[1736124232415,2.68,212.91,212.86,7.47067064]
[1736124233017,2.68,212.91,212.88,2.3491]
[1736124236023,7.47067064,212.92,212.88,2.3491]
[1736124236316,7.47067064,212.92,212.86,9.81987064]
[1736124236518,7.47067064,212.9,212.86,2.3492]
[1736124237718,2.68,212.93,212.8,6.9134]
[1736124237719,7.47067064,212.88,212.8,4.2334]
[1736124237920,10.15067064,212.88,212.8,11.70407064]
[1736124238121,10.15067064,212.88,212.82,7.47067064]
[1736124238317,10.15067064,212.88,212.84,2.3495]
[1736124241627,12.49977064,212.88,212.8,11.70407064]
[1736124242823,10.15067064,212.88,212.82,7.47067064]
[1736124243029,2.68,212.88,212.82,7.47067064]
[1736124243525,7.47067064,212.93,212.86,7.47067064]
[1736124243717,5.0287,212.92,212.86,7.47067064]
[1736124244130,5.0287,212.92,212.8,4.2334]
[1736124244131,7.47067064,212.91,212.84,7.47067064]
[1736124244429,2.68,212.92,212.84,7.47067064]
[1736124244430,9.81957064,212.9,212.85,2.3493]
[1736124247626,2.3489,212.9,212.85,2.3493]
[1736124248633,8.10164111,212.97,212.86,7.47067064]
[1736124248833,7.47067064,212.94,212.86,7.47067064]
[1736124249130,2.68,212.93,212.86,7.47067064]
[1736124249329,5.0286,212.93,212.88,2.3491]
[1736124249723,5.0286,212.93,212.89,2.349]
[1736124251731,5.0286,212.93,212.88,2.3491]
[1736124252527,2.3487,212.92,212.88,2.3491]
[1736124253834,2.3487,212.92,212.88,9.81977064]
[1736124255234,2.68,212.94,212.9,7.47067064]
[1736124255537,2.68,212.96,212.92,7.47067064]
[1736124255838,2.68,212.96,212.93,2.3485]
[1736124256634,5.0279,213.0,212.96,2.3482]
[1736124256836,8.09934306,213.01,212.96,7.47067064]
[1736124257038,8.09934306,213.01,212.88,2.8331]
[1736124257039,8.09934306,213.01,212.98,7.47067064]
[1736124257339,8.09934306,213.01,212.99,2.3479]
[1736124258040,8.09934306,213.01,212.98,7.47067064]
[1736124259436,8.09934306,213.01,212.88,2.8331]
[1736124259630,7.47067064,213.0,212.93,7.47067064]
[1736124260230,2.348,212.98,212.93,9.81917064]
[1736124261036,9.81847064,213.0,212.93,9.81917064]
[1736124261444,2.3478,213.0,212.95,7.47067064]
[1736124261837,8.09934306,213.01,212.95,7.47067064]
[1736124262141,2.3475,213.03,212.97,9.81867064]
[1736124262337,2.3475,213.03,212.97,7.47067064]
[1736124263139,2.68,213.03,212.97,7.47067064]
[1736124263738,10.15067064,213.03,212.98,2.348]
[1736124265544,12.49817064,213.03,212.98,2.348]
[1736124266943,9.81817064,213.03,212.98,2.348]
[1736124267137,2.3475,213.03,212.99,2.3479]
[1736124267540,12.49797064,213.05,212.97,7.47067064]
[1736124267741,5.0273,213.05,212.99,7.47067064]
[1736124269243,2.3473,213.04,213.0,2.3477]
[1736124272149,7.47067064,213.04,212.98,2.3479]
[1736124273449,2.3475,213.03,212.99,2.3479]
[1736124275245,2.68,213.05,212.99,7.47067064]
[1736124275547,2.3473,213.04,213.0,2.3478]
[1736124277744,2.3471,213.07,213.01,7.47067064]
[1736124277944,2.3471,213.07,213.03,7.47067064]
[1736124278345,5.0269,213.09,213.03,9.81807064]
[1736124278540,338.76119605,213.17,213.05,7.47067064]
[1736124278746,7.47067064,213.12,213.05,7.47067064]
[1736124278949,338.76119605,213.17,213.07,7.47067064]
[1736124278950,2.68,213.11,213.07,7.47067064]
[1736124279251,2.68,213.12,213.07,7.47067064]
[1736124279451,2.68,213.13,213.07,7.47067064]
[1736124279645,53.74,213.18,213.09,7.47067064]
[1736124279847,10.15067064,213.17,213.11,7.47067064]
[1736124280065,2.68,213.16,213.11,7.47067064]
[1736124280864,5.0261,213.16,213.11,7.47067064]
[1736124281063,5.0261,213.16,213.1,9.81727064]
[1736124281265,2.3461,213.15,213.1,9.81727064]
[1736124281472,7.47067064,213.15,213.08,9.81747064]
[1736124282763,7.47067064,213.13,213.0,2.68]
[1736124282974,2.3467,213.1,213.05,7.47067064]
[1736124283418,2.68,213.11,213.06,2.3471]
[1736124283866,10.15067064,213.11,213.0,2.68]
[1736124284063,2.3469,213.09,213.04,7.47067064]
[1736124285455,2.3469,213.09,213.04,9.81797064]
[1736124286147,2.3469,213.09,213.04,7.47067064]
[1736124286351,7.47067064,213.1,213.02,7.47067064]
[1736124286552,7.47067064,213.06,212.98,4.2645]
[1736124286752,2.3476,213.02,212.98,4.2645]
[1736124288560,7.47067064,213.04,212.98,2.8531]
[1736124288753,2.3477,213.01,212.98,2.8531]
[1736124290673,2.3476,213.02,212.98,2.8531]
[1736124291551,2.3478,213.01,212.95,2.3483]
[1736124291752,5.0278,213.01,212.95,9.81897064]
[1736124294054,2.68,213.01,212.95,2.3483]
[1736124294251,2.3478,213.0,212.95,9.81897064]
[1736124295454,2.68,213.01,212.95,7.47067064]
[1736124295656,7.47067064,212.97,212.89,1.4188]
[1736124295847,2.68,212.96,212.91,7.47067064]
[1736124296047,5.0283,212.96,212.9,2.3488]
[1736124297054,2.68,212.96,212.89,11.23847064]
[1736124298451,2.3483,212.95,212.89,11.23847064]
[1736124299153,7.47067064,212.97,212.92,2.3486]
[1736124299154,2.68,212.97,212.92,2.3486]
[1736124299354,2.68,212.97,212.93,7.47067064]
[1736124300349,2.68,212.97,212.94,2.3484]
[1736124301358,2.68,212.97,212.93,7.47067064]
[1736124301563,5.0282,212.97,212.91,7.47067064]
[1736124301758,2.68,212.97,212.91,7.47067064]
[1736124302057,2.68,212.97,212.92,2.3486]
[1736124302251,10.15067064,212.97,212.89,8.88947064]
[1736124302760,2.3485,212.94,212.89,8.88947064]
[1736124304356,7.47067064,212.95,212.89,1.4188]
[1736124305263,2.3486,212.93,212.89,1.4188]
[1736124305660,2.68,212.97,212.89,8.88947064]
[1736124305863,7.47067064,212.96,212.89,8.88947064]
[1736124306362,2.68,212.97,212.91,7.47067064]
[1736124306962,5.0282,212.97,212.91,9.81937064]
[1736124307169,2.68,212.97,212.91,7.47067064]
[1736124307374,2.68,212.98,212.93,7.47067064]
[1736124307666,2.68,212.98,212.96,2.3482]
[1736124308270,2.68,212.98,212.95,7.47067064]
[1736124308463,2.68,212.98,212.94,2.3483]
[1736124308668,5.0279,212.99,212.94,2.3483]
[1736124309171,2.3479,212.99,212.94,2.3483]
[1736124309373,5.0279,212.99,212.94,2.3483]
[1736124309573,10.15067064,212.99,212.9,1.5183]
[1736124309764,7.47067064,212.97,212.9,8.98897064]
[1736124310067,10.15067064,212.99,212.92,7.47067064]
[1736124310273,2.68,212.99,212.95,2.3483]
[1736124310767,2.3477,213.02,212.9,1.5183]
[1736124310970,2.3477,213.02,212.96,7.47067064]
[1736124311170,53.72,213.12,212.98,7.47067064]
[1736124311375,7.47067064,213.06,212.98,7.47067064]
[1736124311880,2.68,213.05,212.98,7.47067064]
[1736124312471,7.47067064,213.04,212.99,2.3479]
[1736124313077,2.68,213.03,212.99,2.3479]
[1736124313678,5.0275,213.03,212.99,2.3479]
[1736124314175,5.0275,213.03,212.97,2.348]
[1736124314376,5.0275,213.03,212.96,7.47067064]
[1736124314377,7.47067064,213.02,212.96,7.47067064]
[1736124314671,7.47067064,213.0,212.94,7.47067064]